bitfinex-derivatives/quotes_BTCF0:USTF0_20241005
["timestamp","ask_amount","ask_price","bid_price","bid_amount"]
[1728172118092,0.1,62102.0,62099.0,0.028]
[1728172118489,0.03378272,62101.0,62099.0,0.028]
[1728172118685,0.1,62102.0,62099.0,0.028]
[1728172118890,0.03378326,62101.0,62099.0,0.028]
[1728172119092,0.1,62102.0,62099.0,0.028]
[1728172120497,0.1,62102.0,62099.0,0.014]
[1728172120498,0.03380001,62101.0,62099.0,0.014]
[1728172120696,0.1,62102.0,62099.0,0.028]
[1728172121497,0.03380203,62101.0,62099.0,0.028]
[1728172121694,0.1,62102.0,62099.0,0.028]
[1728172122001,0.03380313,62101.0,62099.0,0.028]
[1728172122194,0.1,62102.0,62099.0,0.028]
[1728172122399,0.03380519,62101.0,62099.0,0.028]
[1728172122597,0.1,62102.0,62099.0,0.028]
[1728172122798,0.03380609,62101.0,62099.0,0.028]
[1728172122998,0.1,62102.0,62099.0,0.028]
[1728172123194,0.03380609,62101.0,62099.0,0.028]
[1728172123404,0.1,62102.0,62099.0,0.028]
[1728172123598,0.03380712,62101.0,62099.0,0.028]
[1728172123803,0.1,62102.0,62099.0,0.028]
[1728172124006,0.03378363,62101.0,62099.0,0.028]
[1728172124204,0.1,62102.0,62099.0,0.014]
[1728172124399,0.03377747,62101.0,62099.0,0.014]
[1728172124604,0.1,62102.0,62099.0,0.028]
[1728172124801,0.03377565,62101.0,62099.0,0.028]
[1728172125100,0.1,62102.0,62099.0,0.028]
[1728172125309,0.0337847,62101.0,62099.0,0.028]
[1728172125501,0.1,62102.0,62099.0,0.028]
[1728172125802,0.03379181,62101.0,62099.0,0.014]
[1728172126106,0.1,62102.0,62099.0,0.028]
[1728172126303,0.03379168,62101.0,62099.0,0.014]
[1728172126505,0.1,62102.0,62099.0,0.028]
[1728172126701,0.0338159,62101.0,62099.0,0.028]
[1728172126901,0.1,62102.0,62099.0,0.028]
[1728172127102,0.03381688,62101.0,62099.0,0.028]
[1728172127303,0.1,62102.0,62099.0,0.028]
[1728172127604,0.03382636,62101.0,62099.0,0.092409]
[1728172127908,0.1,62102.0,62099.0,0.092409]
[1728172128099,0.03382951,62101.0,62099.0,0.092409]
[1728172128296,0.1,62102.0,62099.0,0.092409]
[1728172128504,0.03382906,62101.0,62099.0,0.078409]
[1728172128703,0.03382906,62101.0,62099.0,0.092409]
[1728172129308,0.128306,62103.0,62099.0,0.092409]
[1728172129501,0.03386513,62102.0,62099.0,0.092409]
[1728172129700,0.03386513,62101.0,62099.0,0.092409]
[1728172129906,0.03386513,62100.0,62099.0,0.092409]
[1728172130203,0.0338654,62100.0,62099.0,0.028]
[1728172130404,0.0639,62103.0,62099.0,0.092409]
[1728172130405,0.03386923,62102.0,62099.0,0.092409]
[1728172130616,0.03386923,62101.0,62099.0,0.078409]
[1728172130802,0.03386923,62100.0,62099.0,0.092409]
[1728172131197,0.03386923,62100.0,62099.0,0.078409]
[1728172131406,0.03386923,62100.0,62099.0,0.092409]
[1728172134804,0.03387979,62100.0,62099.0,0.092409]
[1728172139408,0.0639,62103.0,62099.0,0.092409]
[1728172139609,0.03386902,62102.0,62099.0,0.092409]
[1728172139808,0.0639,62103.0,62099.0,0.092409]
[1728172140114,0.03388008,62102.0,62099.0,0.092409]
[1728172140317,0.0639,62103.0,62099.0,0.078409]
[1728172140513,0.03390411,62102.0,62099.0,0.092409]
[1728172140815,0.0639,62103.0,62099.0,0.092409]
[1728172141117,0.03390434,62102.0,62099.0,0.092409]
[1728172141311,0.128306,62103.0,62099.0,0.092409]
[1728172141507,0.03391447,62102.0,62099.0,0.092409]
[1728172141704,0.128306,62103.0,62099.0,0.092409]
[1728172141914,0.03391449,62102.0,62099.0,0.092409]
[1728172142115,0.128306,62103.0,62099.0,0.092409]
[1728172142312,0.03391449,62102.0,62099.0,0.092409]
[1728172142607,0.03391449,62101.0,62099.0,0.092409]
[1728172142810,0.128306,62103.0,62099.0,0.078409]
[1728172143015,0.03391514,62102.0,62099.0,0.078409]
[1728172143310,0.03391514,62101.0,62099.0,0.092409]
[1728172143516,0.128306,62103.0,62099.0,0.092409]
[1728172143717,0.03391594,62102.0,62099.0,0.092409]
[1728172143920,0.03391594,62101.0,62099.0,0.092409]
[1728172144117,0.128306,62103.0,62099.0,0.092409]
[1728172144421,0.03391594,62102.0,62099.0,0.092409]
[1728172144622,0.03391594,62101.0,62099.0,0.092409]
[1728172144804,0.128306,62103.0,62099.0,0.092409]
[1728172145009,0.03390689,62102.0,62099.0,0.092409]
[1728172145205,0.03390689,62101.0,62099.0,0.078409]
[1728172145419,0.03390687,62100.0,62099.0,0.092409]
[1728172146319,0.13390687,62100.0,62099.0,0.078409]
[1728172146725,0.13390687,62100.0,62099.0,0.092409]
[1728172146911,0.13390687,62100.0,62099.0,0.078409]
[1728172147108,0.13390687,62100.0,62099.0,0.092409]
[1728172148005,0.03390687,62100.0,62099.0,0.092409]
[1728172154429,0.064407,62102.0,62099.0,0.092409]
[1728172154612,0.03392145,62101.0,62099.0,0.092409]
[1728172154815,0.064407,62102.0,62099.0,0.092409]
[1728172155008,0.03393542,62101.0,62099.0,0.092409]
[1728172155222,0.064407,62102.0,62099.0,0.092409]
[1728172155223,0.03393542,62100.0,62099.0,0.092409]
[1728172155519,0.03393542,62100.0,62099.0,0.078409]
[1728172155720,0.03393542,62100.0,62099.0,0.092409]
[1728172158025,0.03393542,62100.0,62099.0,0.453209]
[1728172159223,0.071904,62104.0,62099.0,0.453209]
[1728172159419,0.03392543,62103.0,62099.0,0.453209]
[1728172159618,0.03392543,62102.0,62099.0,0.453209]
[1728172159820,0.03392543,62101.0,62099.0,0.453209]
[1728172160018,0.0075,62104.0,62099.0,0.453209]
[1728172160219,0.03392417,62103.0,62099.0,0.453209]
[1728172160427,0.03392417,62102.0,62099.0,0.453209]
[1728172160623,0.03392417,62101.0,62099.0,0.453209]
[1728172160818,0.0075,62104.0,62099.0,0.453209]
[1728172161120,0.03392162,62103.0,62099.0,0.453209]
[1728172161523,0.03392162,62103.0,62099.0,0.439209]
[1728172161819,0.03392162,62103.0,62099.0,0.453209]
[1728172162428,0.03394144,62102.0,62099.0,0.453209]
[1728172162725,0.03394144,62101.0,62099.0,0.453209]
[1728172162918,0.03394144,62100.0,62099.0,0.453209]
[1728172163121,0.03394144,62103.0,62099.0,0.453209]
[1728172163323,0.03394144,62102.0,62099.0,0.453209]
[1728172163521,0.03394144,62101.0,62099.0,0.453209]
[1728172163723,0.03394144,62100.0,62099.0,0.453209]
[1728172163915,0.03394144,62103.0,62099.0,0.453209]
[1728172164726,0.09834644,62103.0,62099.0,0.453209]
[1728172165017,0.03394144,62102.0,62099.0,0.453209]
[1728172165221,0.03394144,62101.0,62099.0,0.453209]
[1728172165531,0.03394144,62100.0,62099.0,0.453209]
[1728172166325,0.03394144,62100.0,62099.0,0.092409]
[1728172167121,0.03392312,62100.0,62099.0,0.092409]
[1728172171924,0.03390614,62100.0,62099.0,0.092409]
[1728172173828,0.03390614,62100.0,62099.0,0.028]
[1728172174038,0.09831514,62100.0,62099.0,0.028]
[1728172174836,0.19831514,62100.0,62099.0,0.028]
[1728172177127,0.13390614,62100.0,62099.0,0.028]
[1728172177731,0.1,62100.0,62099.0,0.028]
[1728172178639,0.097408,62101.0,62099.0,0.028]
[1728172179136,0.064408,62101.0,62099.0,0.028]
[1728172180731,0.0075,62104.0,62099.0,0.092409]
[1728172181731,0.0075,62104.0,62099.0,0.078409]
[1728172181929,0.0075,62104.0,62099.0,0.092409]
[1728172183130,0.0075,62104.0,62099.0,0.078409]
[1728172183339,0.0075,62104.0,62099.0,0.092409]
[1728172183743,0.03388768,62103.0,62099.0,0.092409]
[1728172183940,0.03388768,62102.0,62099.0,0.092409]
[1728172184139,0.0075,62104.0,62099.0,0.092409]
[1728172184335,0.03388769,62103.0,62099.0,0.092409]
[1728172184632,0.0075,62104.0,62099.0,0.092409]
[1728172184838,0.03391036,62103.0,62099.0,0.078409]
[1728172185039,0.03391036,62102.0,62099.0,0.092409]
[1728172185239,0.0075,62104.0,62099.0,0.092409]
[1728172185432,0.03391883,62103.0,62099.0,0.092409]
[1728172185632,0.0075,62104.0,62099.0,0.092409]
[1728172185633,0.03391883,62102.0,62099.0,0.092409]
[1728172185839,0.0075,62104.0,62099.0,0.092409]
[1728172186039,0.03392349,62103.0,62099.0,0.092409]
[1728172186244,0.0075,62104.0,62099.0,0.078409]
[1728172186245,0.03392349,62102.0,62099.0,0.078409]
[1728172186542,0.0075,62104.0,62099.0,0.092409]
[1728172186838,0.0339237,62103.0,62099.0,0.092409]
[1728172187142,0.0339237,62102.0,62099.0,0.092409]
[1728172187340,0.0075,62104.0,62099.0,0.078409]
[1728172187641,0.03392258,62103.0,62099.0,0.092409]
[1728172187831,0.0075,62104.0,62099.0,0.092409]
[1728172187832,0.03392258,62102.0,62099.0,0.092409]
[1728172188031,0.0075,62104.0,62099.0,0.078409]
[1728172188232,0.03392331,62103.0,62099.0,0.092409]
[1728172188432,0.0075,62104.0,62099.0,0.078409]
[1728172188433,0.03392331,62102.0,62099.0,0.078409]
[1728172188731,0.0075,62104.0,62099.0,0.092409]
[1728172188940,0.03392195,62103.0,62099.0,0.092409]
[1728172189241,0.03392195,62102.0,62099.0,0.092409]
[1728172189548,0.0075,62104.0,62099.0,0.092409]
[1728172189730,0.03391784,62103.0,62099.0,0.092409]
[1728172189930,0.03391784,62102.0,62099.0,0.078409]
[1728172190137,0.0075,62104.0,62099.0,0.092409]
[1728172190338,0.03389529,62103.0,62099.0,0.092409]
[1728172190539,0.03389529,62102.0,62099.0,0.092409]
[1728172190734,0.03389529,62101.0,62099.0,0.092409]
[1728172191044,0.03389529,62100.0,62099.0,0.078409]
[1728172191538,0.03389529,62100.0,62099.0,0.092409]
[1728172196140,0.071904,62104.0,62099.0,0.092409]
[1728172196340,0.0339075,62103.0,62099.0,0.092409]
[1728172196551,0.0339075,62102.0,62099.0,0.092409]
[1728172196847,0.0339075,62101.0,62099.0,0.092409]
[1728172197043,0.071904,62104.0,62099.0,0.092409]
[1728172197237,0.03391641,62103.0,62099.0,0.092409]
[1728172197440,0.03391641,62102.0,62099.0,0.078409]
[1728172197639,0.03391641,62101.0,62099.0,0.092409]
[1728172197841,0.071904,62104.0,62099.0,0.092409]
[1728172198041,0.03392518,62103.0,62099.0,0.078409]
[1728172198244,0.03392518,62102.0,62099.0,0.092409]
[1728172198440,0.03392518,62101.0,62099.0,0.092409]
[1728172198641,0.071904,62104.0,62099.0,0.092409]
[1728172198844,0.03393255,62103.0,62099.0,0.092409]
[1728172199146,0.03393255,62102.0,62099.0,0.092409]
[1728172199343,0.03393255,62101.0,62099.0,0.078409]
[1728172199540,0.071904,62104.0,62099.0,0.078409]
[1728172199541,0.03392507,62100.0,62099.0,0.078409]
[1728172199737,0.03392507,62100.0,62099.0,0.092409]
[1728172200444,0.03392471,62100.0,62099.0,0.092409]
[1728172202146,0.03392471,62100.0,62099.0,0.078409]
[1728172202348,0.03392471,62100.0,62099.0,0.092409]
[1728172203244,0.071904,62104.0,62099.0,0.092409]
[1728172203443,0.03392845,62103.0,62099.0,0.092409]
[1728172203645,0.03392845,62102.0,62099.0,0.092409]
[1728172203852,0.03392845,62101.0,62099.0,0.092409]
[1728172204053,0.0075,62104.0,62099.0,0.092409]
[1728172204351,0.09833038,62103.0,62099.0,0.078409]
[1728172204650,0.09833038,62103.0,62099.0,0.092409]
[1728172204651,0.03392438,62102.0,62099.0,0.092409]
[1728172204852,0.03392438,62101.0,62099.0,0.092409]
[1728172205053,0.03392438,62100.0,62099.0,0.092409]
[1728172207550,0.064406,62103.0,62099.0,0.092409]
[1728172207749,0.03390407,62102.0,62099.0,0.092409]
[1728172208051,0.03390407,62101.0,62099.0,0.092409]
[1728172208252,0.064406,62103.0,62099.0,0.092409]
[1728172208451,0.03390407,62102.0,62099.0,0.092409]
[1728172208650,0.03390407,62101.0,62099.0,0.092409]
[1728172208852,0.064406,62103.0,62099.0,0.092409]
[1728172209150,0.03390585,62102.0,62099.0,0.092409]
[1728172209349,0.03390585,62101.0,62099.0,0.092409]
[1728172209655,0.064406,62103.0,62101.0,0.064407]
[1728172209947,0.0338924,62102.0,62101.0,0.064407]
[1728172211353,0.0338924,62102.0,62101.0,0.078407]
[1728172212744,0.0338924,62102.0,62101.0,0.064407]
[1728172212950,0.0338924,62102.0,62101.0,0.092407]
[1728172213549,0.03390066,62102.0,62101.0,0.092407]
[1728172214346,0.064406,62103.0,62101.0,0.092407]
[1728172215763,0.064406,62103.0,62101.0,0.064407]
[1728172215951,0.064406,62103.0,62101.0,0.092407]
[1728172219555,0.0075,62104.0,62103.0,0.5216611]
[1728172219752,0.03389011,62104.0,62103.0,0.4572561]
[1728172219951,0.03389011,62104.0,62103.0,0.8180561]
[1728172220159,0.03389011,62106.0,62103.0,0.8180561]
[1728172220360,0.0075,62107.0,62105.0,0.1]
[1728172220661,0.0075,62107.0,62106.0,0.064402]
[1728172220859,0.04156053,62110.0,62106.0,0.064402]
[1728172221064,0.03406053,62109.0,62106.0,0.064402]
[1728172222778,0.03406053,62109.0,62106.0,0.078402]
[1728172222978,0.0075,62110.0,62106.0,0.078402]
[1728172223276,0.03411274,62109.0,62106.0,0.078402]
[1728172223479,0.03411274,62108.0,62106.0,0.078402]
[1728172223678,0.0075,62110.0,62106.0,0.092402]
[1728172223679,0.03411274,62107.0,62106.0,0.092402]
[1728172225072,0.03411274,62107.0,62106.0,0.078402]
[1728172225270,0.03411274,62107.0,62106.0,0.092402]
[1728172226277,0.03411274,62107.0,62106.0,0.12026587]
[1728172227270,0.171899,62110.0,62106.0,0.12026587]
[1728172227271,0.071899,62110.0,62106.0,0.12026587]
[1728172232081,0.071899,62110.0,62107.0,0.0644]
[1728172233179,0.071899,62110.0,62107.0,0.0784]
[1728172234675,0.071899,62110.0,62107.0,0.0924]
[1728172246089,0.0644,62109.0,62107.0,0.0924]
[1728172246284,0.1,62108.0,62107.0,0.0924]
[1728172246988,0.1644,62108.0,62107.0,0.028]
[1728172247381,0.19847624,62108.0,62107.0,0.028]
[1728172247685,0.19847624,62108.0,62107.0,0.014]
[1728172247988,0.19847624,62108.0,62107.0,0.028]
[1728172248683,0.19847624,62108.0,62107.0,0.014]
[1728172248880,0.19847624,62108.0,62107.0,0.028]
[1728172260595,0.55927624,62108.0,62107.0,0.028]
[1728172260786,0.55919166,62108.0,62107.0,0.028]
[1728172261494,0.19839166,62108.0,62107.0,0.028]
[1728172261694,0.55919166,62108.0,62107.0,0.028]
[1728172262386,0.19839166,62108.0,62107.0,0.028]
[1728172262586,0.55919166,62108.0,62107.0,0.028]
[1728172263482,0.19839166,62108.0,62107.0,0.028]
[1728172263984,0.55919166,62108.0,62107.0,0.028]
[1728172264387,0.19839166,62108.0,62107.0,0.028]
[1728172264586,0.55919166,62108.0,62107.0,0.028]
[1728172265698,0.19839166,62108.0,62107.0,0.028]
[1728172265900,0.55919166,62108.0,62107.0,0.028]
[1728172266996,0.19839166,62108.0,62107.0,0.028]
[1728172267395,0.55919166,62108.0,62107.0,0.028]
[1728172268291,0.5592573,62108.0,62107.0,0.028]
[1728172268794,0.1984573,62108.0,62107.0,0.028]
[1728172269095,0.5592573,62108.0,62107.0,0.028]
[1728172269290,0.1984573,62108.0,62107.0,0.028]
[1728172269598,0.5592573,62108.0,62107.0,0.028]
[1728172269791,0.55926002,62108.0,62107.0,0.028]
[1728172271093,0.19846002,62108.0,62107.0,0.028]
[1728172271298,0.55926002,62108.0,62107.0,0.028]
[1728172273788,0.55923928,62108.0,62107.0,0.028]
[1728172274693,0.55923509,62108.0,62107.0,0.028]
[1728172281303,0.59875843,62108.0,62107.0,0.028]
[1728172281608,0.55923509,62108.0,62107.0,0.028]
[1728172284402,0.55924368,62108.0,62107.0,0.028]
[1728172287405,0.19844368,62108.0,62107.0,0.028]
[1728172289211,0.1985156,62108.0,62107.0,0.028]
[1728172292213,0.0985156,62108.0,62107.0,0.028]
[1728172293810,0.0644,62108.0,62107.0,0.028]
[1728172294015,0.09842515,62108.0,62107.0,0.028]
[1728172296612,0.13794426,62108.0,62107.0,0.028]
[1728172296801,0.09842515,62108.0,62107.0,0.028]
[1728172298516,0.09841428,62108.0,62107.0,0.028]
[1728172303409,0.09852614,62108.0,62107.0,0.028]
[1728172313014,0.0644,62108.0,62107.0,0.028]
[1728172313221,0.09841876,62108.0,62107.0,0.028]
[1728172321227,0.09847944,62108.0,62107.0,0.028]
[1728172326128,0.09847775,62108.0,62107.0,0.028]
[1728172333843,0.0644,62108.0,62107.0,0.028]
[1728172334032,0.09850359,62108.0,62107.0,0.028]
[1728172340648,0.09844948,62108.0,62107.0,0.028]
[1728172350245,0.09842414,62108.0,62107.0,0.028]
[1728172353950,0.1379139,62108.0,62107.0,0.028]
[1728172354251,0.13792687,62108.0,62107.0,0.028]
[1728172355057,0.13789945,62108.0,62107.0,0.028]
[1728172355267,0.09841104,62108.0,62107.0,0.028]
[1728172355447,0.1379092,62108.0,62107.0,0.028]
[1728172356655,0.09841104,62108.0,62107.0,0.028]
[1728172359652,0.0644,62108.0,62107.0,0.028]
[1728172359853,0.09839667,62108.0,62107.0,0.028]
[1728172364659,0.09846029,62108.0,62107.0,0.028]
[1728172369362,0.09841944,62108.0,62107.0,0.028]
[1728172372664,0.03401944,62108.0,62107.0,0.092401]
[1728172374363,0.03407885,62109.0,62107.0,0.092401]
[1728172374666,0.03407885,62108.0,62107.0,0.092401]
[1728172375364,0.03407885,62108.0,62107.0,0.078401]
[1728172375556,0.1075,62110.0,62107.0,0.092401]
[1728172375761,0.03419199,62109.0,62107.0,0.092401]
[1728172376069,0.1075,62110.0,62107.0,0.092401]
[1728172376365,0.03419418,62109.0,62107.0,0.092401]
[1728172376575,0.1075,62110.0,62107.0,0.092401]
[1728172376776,0.03419253,62109.0,62107.0,0.092401]
[1728172376982,0.1075,62110.0,62107.0,0.078401]
[1728172377164,0.03419252,62109.0,62107.0,0.092401]
[1728172377363,0.1075,62110.0,62107.0,0.092401]
[1728172377661,0.03419364,62109.0,62107.0,0.092401]
[1728172377863,0.1075,62110.0,62107.0,0.092401]
[1728172378172,0.034192,62109.0,62107.0,0.092401]
[1728172378363,0.1075,62110.0,62107.0,0.092401]
[1728172378563,0.03419278,62109.0,62107.0,0.092401]
[1728172378764,0.1075,62110.0,62107.0,0.092401]
[1728172379066,0.03419132,62109.0,62107.0,0.092401]
[1728172379263,0.1075,62110.0,62107.0,0.078401]
[1728172379469,0.03420075,62109.0,62107.0,0.092401]
[1728172379670,0.1075,62110.0,62107.0,0.092401]
[1728172379875,0.03419394,62109.0,62107.0,0.092401]
[1728172380062,0.1075,62110.0,62107.0,0.078401]
[1728172380063,0.03418984,62108.0,62107.0,0.078401]
[1728172380259,0.03418984,62108.0,62107.0,0.092401]
[1728172380880,0.1075,62110.0,62107.0,0.092401]
[1728172381069,0.0341887,62109.0,62107.0,0.092401]
[1728172381268,0.1075,62110.0,62107.0,0.092401]
[1728172381472,0.0341974,62109.0,62107.0,0.092401]
[1728172381668,0.1075,62110.0,62107.0,0.092401]
[1728172381870,0.03419943,62109.0,62107.0,0.092401]
[1728172382165,0.03419943,62108.0,62107.0,0.092401]
[1728172382584,0.03419745,62108.0,62107.0,0.092401]
[1728172383962,0.03419745,62108.0,62107.0,0.078401]
[1728172384171,0.03419745,62108.0,62107.0,0.092401]
[1728172387972,0.064399,62109.0,62107.0,0.092401]
[1728172389777,0.064399,62109.0,62107.0,0.078401]
[1728172389977,0.064399,62109.0,62107.0,0.092401]
[1728172398187,0.0075,62110.0,62109.0,0.064399]
[1728172398388,0.0075,62113.0,62111.0,0.064397]
[1728172398895,0.0343186,62112.0,62111.0,0.064397]
[1728172399595,0.0075,62113.0,62111.0,0.064397]
[1728172399789,0.0075,62113.0,62111.0,0.078397]
[1728172401083,0.0075,62113.0,62111.0,0.092397]
[1728172401286,0.0075,62113.0,62111.0,0.078397]
[1728172401589,0.0075,62113.0,62111.0,0.092397]
[1728172401897,0.0075,62113.0,62112.0,0.064396]
[1728172402192,0.36172,62115.0,62111.0,0.128]
[1728172402193,0.3608,62115.0,62114.0,0.064394]
[1728172403682,0.3608,62115.0,62114.0,0.078394]
[1728172404297,0.0075,62116.0,62114.0,0.092394]
[1728172413401,0.0075,62116.0,62114.0,0.028]
[1728172413603,0.0075,62116.0,62115.0,0.064393]
[1728172413804,0.16439,62118.0,62115.0,0.064393]
[1728172414803,0.16439,62118.0,62114.0,0.128]
[1728172415000,0.0075,62119.0,62117.0,0.064391]
[1728172415601,0.0075,62119.0,62115.0,0.0038]
[1728172415804,0.0075,62119.0,62118.0,0.06439]
[1728172415993,0.164387,62121.0,62119.0,0.064389]
[1728172417298,0.164387,62121.0,62119.0,0.078389]
[1728172417710,0.164387,62121.0,62119.0,0.092389]
[1728172420003,0.164387,62121.0,62119.0,0.11984953]
[1728172423109,0.164387,62121.0,62119.0,0.05546053]
[1728172426009,0.164387,62121.0,62119.0,0.11984953]
[1728172429011,0.0075,62122.0,62121.0,0.064387]
[1728172429203,0.1075,62125.0,62121.0,0.064387]
[1728172429506,0.03478716,62124.0,62121.0,0.064387]
[1728172429814,0.1075,62125.0,62121.0,0.064387]
[1728172430003,0.03479942,62124.0,62121.0,0.064387]
[1728172430205,0.1075,62125.0,62121.0,0.078387]
[1728172430507,0.03480351,62124.0,62121.0,0.078387]
[1728172430710,0.0075,62125.0,62124.0,0.064384]
[1728172430914,0.0075,62125.0,62123.0,0.1]
[1728172430915,0.03481432,62125.0,62123.0,0.1]
[1728172431117,0.0075,62128.0,62123.0,0.1]
[1728172431415,0.0075,62128.0,62121.0,0.0318]
[1728172431416,0.13496386,62127.0,62121.0,0.0318]
[1728172431619,0.03496386,62126.0,62123.0,0.064384]
[1728172432605,0.03496386,62126.0,62123.0,0.078384]
[1728172433217,0.03496386,62126.0,62124.0,0.064384]
[1728172433613,0.03496386,62126.0,62123.0,0.028]
[1728172433917,0.03496386,62126.0,62125.0,0.064383]
[1728172435124,0.03496386,62126.0,62125.0,0.078383]
[1728172435308,0.03494509,62126.0,62125.0,0.078383]
[1728172435507,0.1,62127.0,62125.0,0.078383]
[1728172436121,0.1,62127.0,62125.0,0.092383]
[1728172437710,0.1,62127.0,62125.0,0.078383]
[1728172438015,0.1,62127.0,62125.0,0.092383]
[1728172451830,0.03492255,62126.0,62125.0,0.092383]
[1728172453632,0.03492807,62126.0,62125.0,0.092383]
[1728172458522,0.03494929,62126.0,62125.0,0.092383]
[1728172463437,0.03491941,62126.0,62125.0,0.092383]
[1728172463636,0.09930141,62126.0,62125.0,0.028]
[1728172473142,0.09922333,62126.0,62125.0,0.028]
[1728172479843,0.03484133,62126.0,62125.0,0.028]
[1728172487655,0.03492895,62126.0,62125.0,0.028]
[1728172492453,0.03492938,62126.0,62125.0,0.028]
[1728172498660,0.09931138,62126.0,62125.0,0.028]
[1728172500854,0.064382,62126.0,62125.0,0.028]
[1728172501156,0.09934348,62126.0,62125.0,0.028]
[1728172503351,0.09934348,62126.0,62125.0,0.014]
[1728172503552,0.09934348,62126.0,62125.0,0.028]
[1728172508861,0.064382,62126.0,62125.0,0.028]
[1728172509059,0.09936446,62126.0,62125.0,0.028]
[1728172514357,0.09933517,62126.0,62125.0,0.028]
[1728172524769,0.09929787,62126.0,62125.0,0.028]
[1728172529575,0.09934289,62126.0,62125.0,0.028]
[1728172539282,0.09935816,62126.0,62125.0,0.028]
[1728172541688,0.064382,62126.0,62125.0,0.028]
[1728172541886,0.0378,62128.0,62125.0,0.092383]
[1728172542795,0.0075,62128.0,62126.0,0.064381]
[1728172545089,0.0075,62128.0,62126.0,0.078381]
[1728172545991,0.0075,62128.0,62126.0,0.092381]
[1728172547985,0.03502188,62127.0,62126.0,0.092381]
[1728172548990,0.03502188,62127.0,62126.0,0.078381]
[1728172549187,0.03502188,62127.0,62126.0,0.092381]
[1728172549893,0.0075,62128.0,62126.0,0.092381]
[1728172550596,0.0075,62128.0,62126.0,0.12035692]
[1728172551900,0.1075,62128.0,62126.0,0.12035692]
[1728172552996,0.03501618,62127.0,62126.0,0.12035692]
[1728172557894,0.1075,62128.0,62126.0,0.12035692]
[1728172559904,0.0350049,62127.0,62126.0,0.12035692]
[1728172562000,0.03499713,62127.0,62126.0,0.12035692]
[1728172562201,0.03499713,62127.0,62126.0,0.10635692]
[1728172562408,0.03499713,62127.0,62126.0,0.12035692]
[1728172564404,0.0075,62128.0,62127.0,0.064381]
[1728172564606,0.0075,62131.0,62127.0,0.064381]
[1728172564910,0.03504067,62130.0,62127.0,0.064381]
[1728172565107,0.03504067,62129.0,62127.0,0.064381]
[1728172565303,0.03504067,62128.0,62127.0,0.064381]
[1728172565507,0.03504067,62128.0,62127.0,0.078381]
[1728172566010,0.03504067,62128.0,62127.0,0.092381]
[1728172566711,0.03500795,62128.0,62127.0,0.092381]
[1728172566905,0.1075,62131.0,62127.0,0.092381]
[1728172567109,0.03501866,62130.0,62127.0,0.078381]
[1728172567410,0.0075,62131.0,62128.0,0.064379]
[1728172567612,0.1075,62131.0,62128.0,0.064379]
[1728172567811,0.03504981,62130.0,62128.0,0.064379]
[1728172568011,0.1075,62131.0,62128.0,0.064379]
[1728172568814,0.03506898,62130.0,62128.0,0.078379]
[1728172569109,0.171876,62131.0,62128.0,0.092379]
[1728172569317,0.03506502,62130.0,62128.0,0.092379]
[1728172569515,0.171876,62131.0,62128.0,0.092379]
[1728172569713,0.03506372,62130.0,62128.0,0.092379]
[1728172569913,0.171876,62131.0,62128.0,0.078379]
[1728172570115,0.03506295,62130.0,62128.0,0.092379]
[1728172570318,0.171876,62131.0,62128.0,0.028]
[1728172570526,0.03503282,62130.0,62128.0,0.028]
[1728172570724,0.171876,62131.0,62128.0,0.028]
[1728172570924,0.03504473,62130.0,62128.0,0.028]
[1728172571124,0.071876,62131.0,62128.0,0.028]
[1728172571326,0.03504284,62130.0,62128.0,0.028]
[1728172571522,0.071876,62131.0,62128.0,0.028]
[1728172571728,0.03505155,62130.0,62128.0,0.028]
[1728172571920,0.071876,62131.0,62128.0,0.028]
[1728172572225,0.03504702,62130.0,62128.0,0.028]
[1728172572426,0.071876,62131.0,62128.0,0.028]
[1728172572627,0.03504452,62130.0,62128.0,0.014]
[1728172572822,0.171876,62131.0,62128.0,0.028]
[1728172573122,0.03505433,62130.0,62128.0,0.028]
[1728172573324,0.071876,62131.0,62128.0,0.028]
[1728172573525,0.03504138,62130.0,62128.0,0.028]
[1728172573717,0.171876,62131.0,62128.0,0.014]
[1728172573921,0.03505785,62130.0,62128.0,0.028]
[1728172574218,0.03505785,62129.0,62128.0,0.028]
[1728172574623,0.03498541,62129.0,62128.0,0.028]
[1728172575329,0.03498541,62129.0,62128.0,0.014]
[1728172575622,0.03498541,62129.0,62128.0,0.028]
[1728172581231,0.03500664,62129.0,62128.0,0.028]
[1728172586039,0.03498454,62129.0,62128.0,0.028]
[1728172589139,0.09936254,62129.0,62128.0,0.028]
[1728172589645,0.03498454,62129.0,62128.0,0.028]
[1728172595634,0.03507126,62129.0,62128.0,0.028]
[1728172604647,0.0075,62131.0,62128.0,0.028]
[1728172604847,0.03506295,62130.0,62128.0,0.028]
[1728172605145,0.0075,62131.0,62128.0,0.092379]
[1728172605356,0.03508574,62130.0,62128.0,0.092379]
[1728172605646,0.0075,62131.0,62128.0,0.092379]
[1728172605647,0.03508574,62129.0,62128.0,0.092379]
[1728172607353,0.0075,62131.0,62130.0,0.064377]
[1728172607551,0.03514453,62131.0,62130.0,0.064377]
[1728172608743,0.03514453,62131.0,62130.0,0.078377]
[1728172608952,0.03514453,62131.0,62130.0,0.092377]
[1728172610755,0.071873,62134.0,62130.0,0.092377]
[1728172610962,0.03523232,62133.0,62130.0,0.092377]
[1728172611251,0.03523232,62132.0,62130.0,0.092377]
[1728172611465,0.071873,62134.0,62130.0,0.092377]
[1728172611753,0.03523851,62133.0,62130.0,0.078377]
[1728172611953,0.03523851,62132.0,62130.0,0.092377]
[1728172612153,0.03523851,62131.0,62130.0,0.092377]
[1728172613642,0.03523851,62131.0,62130.0,0.064377]